bitfinex/quotes_SOLUSD_20251118
["timestamp","ask_amount","ask_price","bid_price","bid_amount"]
[1763442840449,10.44882769,136.49,136.41,24.18088281]
[1763442840450,9.78882769,136.53,136.48,9.62789812]
[1763442840738,9.78882769,136.53,136.51,9.62789812]
[1763442841044,0.14216157,136.5,136.42,31.50984285]
[1763442841206,9.78882769,136.51,136.48,9.62789812]
[1763442841414,9.78882769,136.51,136.42,25.65606215]
[1763442841415,0.66,136.51,136.49,9.62789812]
[1763442841910,0.66,136.51,136.47,9.62789812]
[1763442842422,0.66,136.51,136.48,9.62789812]
[1763442842815,0.66,136.51,136.47,5.52338528]
[1763442843721,0.66,136.51,136.48,5.52338528]
[1763442844300,0.66,136.51,136.47,5.52338528]
[1763442845006,0.66,136.51,136.48,5.52338528]
[1763442845811,0.66,136.51,136.47,5.52338528]
[1763442846727,0.14216157,136.5,136.45,5.52338528]
[1763442847106,0.66,136.49,136.45,5.52338528]
[1763442848632,0.66,136.49,136.46,5.52338528]
[1763442848838,0.66,136.49,136.42,31.50984285]
[1763442848839,9.78882769,136.49,136.42,31.50984285]
[1763442849130,10.44882769,136.49,136.47,5.52338528]
[1763442849737,18.12096,136.53,136.48,5.52338528]
[1763442849927,0.66,136.57,136.48,5.52338528]
[1763442850116,0.66,136.57,136.55,5.52338528]
[1763442851534,0.66,136.57,136.49,5.8537807]
[1763442851535,9.93098926,136.56,136.49,5.8537807]
[1763442851716,15.45437454,136.56,136.5,5.52338528]
[1763442851914,0.14216157,136.54,136.5,5.52338528]
[1763442852314,9.78882769,136.52,136.5,5.52338528]
[1763442852726,28.05194926,136.54,136.49,5.52338528]
[1763442852933,0.67,136.51,136.49,5.52338528]
[1763442853127,9.78882769,136.5,136.42,13.18390448]
[1763442853441,9.78882769,136.5,136.46,5.52338528]
[1763442853742,0.67,136.49,136.46,5.52338528]
[1763442854034,0.67,136.49,136.47,5.52338528]
[1763442854425,0.67,136.49,136.46,5.52338528]
[1763442854942,9.78882769,136.48,136.46,5.52338528]
[1763442855436,0.67,136.47,136.45,5.52338528]
[1763442856141,0.67,136.47,136.41,7.33084084]
[1763442856334,0.67,136.47,136.45,5.52338528]
[1763442859346,0.65,136.5,136.46,5.52338528]
[1763442859525,0.65,136.49,136.47,5.52338528]
[1763442859725,0.65,136.49,136.46,5.52338528]
[1763442860934,0.14216157,136.52,136.47,5.52338528]
[1763442861136,0.65,136.49,136.47,5.52338528]
[1763442862434,0.65,136.49,136.44,31.30378549]
[1763442862641,0.65,136.49,136.47,5.52338528]
[1763442864732,0.65,136.49,136.44,5.8537807]
[1763442865042,0.65,136.49,136.46,5.52338528]
[1763442865852,15.45437454,136.53,136.47,5.52338528]
[1763442866149,0.65,136.51,136.48,5.52338528]
[1763442866351,0.65,136.51,136.44,33.57465671]
[1763442866352,0.65,136.51,136.49,5.52338528]
[1763442868058,10.43882769,136.53,136.49,5.52338528]
[1763442868353,10.43882769,136.53,136.5,5.52338528]
[1763442868857,18.12096,136.54,136.51,5.52338528]
[1763442869033,18.77096,136.54,136.51,5.52338528]
[1763442869239,0.65,136.53,136.51,5.52338528]
[1763442870252,5.52338528,136.6,136.52,5.52338528]
[1763442870458,0.65,136.56,136.52,5.52338528]
[1763442870645,9.78882769,136.54,136.48,5.8537807]
[1763442870831,9.78882769,136.54,136.51,5.52338528]
[1763442871044,0.65,136.54,136.5,5.52338528]
[1763442871248,0.65,136.53,136.51,5.52338528]
[1763442871446,18.77096,136.53,136.49,5.52338528]
[1763442871744,9.78882769,136.52,136.48,5.52338528]
[1763442871946,10.43882769,136.52,136.48,5.52338528]
[1763442872140,0.65,136.51,136.49,5.52338528]
[1763442873861,0.65,136.53,136.5,5.52338528]
[1763442874557,9.78882769,136.52,136.49,5.52338528]
[1763442874855,9.78882769,136.52,136.47,5.52338528]
[1763442875038,9.78882769,136.5,136.47,5.52338528]
[1763442875440,0.65,136.49,136.47,5.52338528]
[1763442876565,0.65,136.49,136.44,7.32899969]
[1763442876566,0.65,136.49,136.44,5.8537807]
[1763442876748,0.65,136.49,136.45,5.52338528]
[1763442877060,0.65,136.49,136.44,5.52338528]
[1763442877061,9.78882769,136.48,136.44,5.52338528]
[1763442877249,9.78882769,136.48,136.43,5.52338528]
[1763442877439,0.65,136.47,136.43,5.52338528]
[1763442878050,0.65,136.47,136.44,5.52338528]
[1763442878261,9.78882769,136.46,136.41,5.8537807]
[1763442878463,9.78882769,136.46,136.42,5.52338528]
[1763442878761,0.65,136.45,136.43,5.52338528]
[1763442879160,9.78882769,136.46,136.43,5.52338528]
[1763442879339,10.43882769,136.46,136.43,5.52338528]
[1763442879676,18.77096,136.47,136.44,5.52338528]
[1763442879958,0.65,136.46,136.44,5.52338528]
[1763442880158,0.65,136.46,136.42,5.8537807]
[1763442880370,18.12096,136.47,136.45,5.52338528]
[1763442880552,18.12096,136.47,136.46,5.52338528]
[1763442880948,18.91312157,136.49,136.46,5.52338528]
[1763442880949,9.78882769,136.48,136.46,5.52338528]
[1763442881160,0.65,136.48,136.43,5.8537807]
[1763442881351,0.65,136.47,136.45,5.52338528]
[1763442882480,0.7,136.49,136.46,5.52338528]
[1763442883651,0.7,136.49,136.47,5.52338528]
[1763442883867,0.7,136.49,136.46,5.52338528]
[1763442884754,0.7,136.49,136.44,5.8537807]
[1763442884955,0.7,136.49,136.46,5.52338528]
[1763442886052,0.7,136.49,136.45,5.52338528]
[1763442886268,0.14216157,136.48,136.44,11.37716598]
[1763442886467,0.14216157,136.48,136.44,5.52338528]
[1763442886675,0.7,136.47,136.44,5.52338528]
[1763442888349,0.7,136.47,136.42,5.8537807]
[1763442888350,0.7,136.47,136.45,5.52338528]
[1763442888550,0.7,136.47,136.42,5.8537807]
[1763442888778,0.7,136.47,136.45,5.52338528]
[1763442888965,9.78882769,136.46,136.43,5.8537807]
[1763442889165,9.78882769,136.46,136.41,7.92252249]
[1763442889166,18.12096,136.45,136.41,11.37716598]
[1763442889366,0.7,136.44,136.4,11.37716598]
[1763442889673,0.7,136.44,136.41,5.52338528]
[1763442889865,0.7,136.44,136.4,5.8537807]
[1763442890083,9.78882769,136.43,136.39,11.37716598]
[1763442890252,9.78882769,136.43,136.39,5.52338528]
[1763442890452,0.7,136.42,136.39,5.52338528]
[1763442891174,9.78882769,136.41,136.38,6.0537807]
[1763442891377,9.78882769,136.41,136.38,11.57716598]
[1763442891583,0.7,136.4,136.38,11.57716598]
[1763442891768,0.7,136.4,136.38,5.72338528]
[1763442892159,9.78882769,136.41,136.39,5.52338528]
[1763442892364,0.7,136.42,136.39,5.52338528]
[1763442893863,9.78882769,136.41,136.38,0.2]
[1763442894279,9.78882769,136.39,136.38,0.2]
[1763442894481,9.93098926,136.39,136.38,0.2]
[1763442894668,0.84216157,136.39,136.38,0.2]
[1763442897563,6.36554685,136.39,136.38,0.2]
[1763442897770,0.84216157,136.39,136.38,0.2]
[1763442898186,28.75194926,136.39,136.38,0.2]
[1763442898603,10.63098926,136.39,136.38,0.2]
[1763442900868,10.63098926,136.39,136.33,0.2]
[1763442900869,9.93098926,136.38,136.33,0.2]
[1763442901072,0.14216157,136.36,136.33,0.2]
[1763442901272,9.93098926,136.36,136.33,0.2]
[1763442901574,9.93098926,136.34,136.33,0.2]
[1763442901982,0.84216157,136.34,136.33,0.2]
[1763442902293,9.78882769,136.38,136.33,13.25827526]
[1763442902597,10.48882769,136.39,136.35,5.52338528]
[1763442902769,10.48882769,136.39,136.36,9.63309021]
[1763442902970,0.14216157,136.38,136.36,9.63309021]
[1763442903174,0.84216157,136.38,136.36,9.63309021]
[1763442903370,0.7,136.41,136.37,9.63309021]
[1763442903672,9.78882769,136.42,136.37,9.63309021]
[1763442903673,9.78882769,136.39,136.37,9.63309021]
[1763442903875,0.7,136.38,136.33,6.0537807]
[1763442904192,9.78882769,136.37,136.33,9.83309021]
[1763442904366,18.12096,136.39,136.35,9.63309021]
[1763442904569,9.78882769,136.4,136.37,9.63309021]
[1763442904778,9.78882769,136.41,136.38,9.63309021]
[1763442904982,9.78882769,136.41,136.39,9.63309021]
[1763442904983,10.48882769,136.41,136.39,9.63309021]
[1763442905586,9.78882769,136.44,136.39,9.63309021]
[1763442905794,0.7,136.41,136.39,9.63309021]
[1763442906095,18.82096,136.41,136.39,9.63309021]
[1763442906782,0.7,136.4,136.39,9.63309021]
[1763442907094,0.7,136.4,136.38,9.63309021]
[1763442907296,9.63309021,136.46,136.39,9.63309021]
[1763442907468,9.78882769,136.44,136.41,9.63309021]
[1763442907675,18.12096,136.42,136.41,9.63309021]
[1763442907870,18.12096,136.42,136.37,5.8537807]
[1763442907871,0.84216157,136.43,136.37,0.2]
[1763442908097,0.14216157,136.41,136.37,9.63309021]
[1763442908294,18.12096,136.4,136.37,9.63309021]
[1763442908471,18.82096,136.4,136.37,9.63309021]
[1763442908669,18.12096,136.4,136.38,9.63309021]
[1763442909067,10.63098926,136.39,136.33,6.0537807]
[1763442909301,0.14216157,136.34,136.33,0.2]
[1763442909510,9.78882769,136.35,136.33,0.2]
[1763442909806,0.7,136.34,136.33,0.2]
[1763442910010,10.63098926,136.34,136.33,0.2]
[1763442911196,9.93098926,136.34,136.33,0.2]
[1763442911402,10.63098926,136.34,136.33,0.2]
[1763442911581,9.93098926,136.34,136.33,0.2]
[1763442911901,9.93098926,136.35,136.33,0.2]
[1763442912103,18.80096,136.35,136.33,0.2]
[1763442914298,18.12096,136.34,136.33,0.2]
[1763442914598,9.93098926,136.33,136.31,0.2]
[1763442914996,10.61098926,136.33,136.31,0.2]
[1763442915315,9.63309021,136.36,136.31,0.2]
[1763442915488,18.80096,136.33,136.31,0.2]
[1763442915676,0.82216157,136.35,136.31,9.83309021]
[1763442915873,18.26312157,136.35,136.33,9.63309021]
[1763442916102,18.94312157,136.35,136.33,9.63309021]
[1763442916489,18.26312157,136.35,136.33,9.63309021]
[1763442916803,9.78882769,136.36,136.34,9.63309021]
[1763442917001,9.78882769,136.36,136.35,9.63309021]
[1763442917216,9.93098926,136.36,136.35,9.63309021]
[1763442917503,10.61098926,136.36,136.33,9.63309021]
[1763442917710,9.93098926,136.36,136.34,9.63309021]
[1763442918083,9.63309021,136.41,136.35,9.63309021]
[1763442918281,9.78882769,136.39,136.34,0.4]
[1763442918501,9.78882769,136.39,136.32,5.8537807]
[1763442918705,9.78882769,136.39,136.31,7.93604096]
[1763442918706,9.78882769,136.41,136.36,9.63309021]
[1763442918907,0.14216157,136.36,136.31,0.6]
[1763442919104,0.14216157,136.36,136.34,9.63309021]
[1763442919928,18.12096,136.38,136.35,9.63309021]
[1763442920215,9.78882769,136.41,136.37,9.63309021]
[1763442920383,10.47882769,136.4,136.38,9.63309021]
[1763442920892,9.78882769,136.4,136.37,9.63309021]
[1763442921092,10.47882769,136.4,136.37,9.63309021]
[1763442921499,9.78882769,136.36,136.34,9.63309021]
[1763442921710,18.12096,136.37,136.32,6.2537807]
[1763442921894,18.12096,136.37,136.35,9.63309021]
[1763442922227,10.62098926,136.37,136.35,9.63309021]
[1763442923286,0.14216157,136.35,136.33,9.63309021]
[1763442923519,0.14216157,136.35,136.32,9.63309021]
[1763442923696,9.78882769,136.34,136.31,9.83309021]
[1763442924099,10.47882769,136.34,136.31,9.83309021]
[1763442924299,10.47882769,136.34,136.32,9.63309021]
[1763442924610,0.14216157,136.35,136.32,9.63309021]
[1763442924796,9.78882769,136.36,136.33,9.63309021]
[1763442925001,0.14216157,136.35,136.33,9.63309021]
[1763442925314,0.14216157,136.35,136.31,0.6]
[1763442925315,0.83216157,136.35,136.31,0.2]
[1763442925612,0.83216157,136.35,136.32,9.63309021]
[1763442925991,0.83216157,136.35,136.31,0.6]
[1763442926188,0.14216157,136.35,136.32,9.63309021]
[1763442926517,0.14216157,136.35,136.33,9.63309021]
[1763442927095,9.93098926,136.38,136.34,10.03309021]
[1763442927311,28.74194926,136.38,136.35,9.63309021]
[1763442927921,0.69,136.37,136.35,9.63309021]
[1763442928905,0.69,136.37,136.34,9.63309021]
[1763442929520,0.14216157,136.36,136.33,9.63309021]
[1763442929708,9.93098926,136.36,136.32,9.63309021]
[1763442929898,9.93098926,136.34,136.31,9.83309021]
[1763442930095,0.14216157,136.34,136.31,9.83309021]
[1763442930322,18.81096,136.35,136.32,9.63309021]
[1763442930504,18.81096,136.35,136.33,9.63309021]
[1763442930815,0.69,136.35,136.33,9.63309021]
[1763442931404,0.69,136.35,136.31,0.2]
[1763442931405,0.69,136.35,136.32,9.63309021]
[1763442933424,18.12096,136.34,136.32,9.63309021]
[1763442933898,18.81096,136.34,136.31,9.83309021]
[1763442934207,18.81096,136.34,136.32,9.63309021]
[1763442934819,18.12096,136.36,136.33,9.63309021]
[1763442935006,18.81096,136.36,136.34,9.63309021]
[1763442935210,18.95312157,136.36,136.35,9.63309021]
[1763442935412,0.14216157,136.37,136.35,9.63309021]
[1763442935601,110.0302492,136.43,136.33,0.4]
[1763442935602,0.69,136.4,136.36,9.63309021]
[1763442935802,9.78882769,136.41,136.37,9.63309021]
[1763442936022,18.12096,136.38,136.37,9.63309021]
[1763442936504,0.69,136.39,136.37,9.63309021]
[1763442936703,18.12096,136.38,136.37,9.63309021]
[1763442937518,18.12096,136.38,136.36,9.63309021]
[1763442937926,0.69,136.37,136.35,9.63309021]
[1763442939000,18.12096,136.38,136.35,9.63309021]
[1763442939214,18.81096,136.38,136.35,9.63309021]
[1763442939606,18.12096,136.38,136.35,9.63309021]
[1763442939806,0.69,136.37,136.35,9.63309021]
[1763442941701,18.12096,136.38,136.35,9.63309021]
[1763442941909,18.12096,136.38,136.36,9.63309021]
[1763442945732,18.12096,136.38,136.35,15.53268415]
[1763442946026,0.71,136.37,136.34,15.53268415]
[1763442946607,0.71,136.37,136.34,5.89959394]
[1763442946831,9.93098926,136.36,136.32,5.89959394]
[1763442947035,9.93098926,136.36,136.31,15.73268415]
[1763442947242,0.71,136.35,136.32,5.89959394]
[1763442947843,0.71,136.35,136.31,15.73268415]
[1763442948218,9.93098926,136.36,136.32,10.03309021]
[1763442948219,0.85216157,136.36,136.32,10.03309021]
[1763442948420,0.71,136.35,136.32,9.63309021]
[1763442949108,0.71,136.35,136.32,15.53268415]
[1763442949306,0.14216157,136.34,136.31,6.09959394]
[1763442949543,0.71,136.35,136.31,6.09959394]
[1763442949711,0.71,136.35,136.31,16.13268415]
[1763442949911,0.71,136.35,136.31,15.73268415]
[1763442950922,0.71,136.35,136.32,5.89959394]
[1763442951123,0.71,136.35,136.31,15.73268415]
[1763442951522,0.71,136.35,136.31,6.09959394]
[1763442951726,0.71,136.35,136.31,15.73268415]
[1763442952042,27.90978769,136.32,136.31,0.2]
[1763442952336,28.05194926,136.32,136.31,0.2]
[1763442952553,28.76194926,136.32,136.31,0.2]
[1763442955747,9.93098926,136.31,136.3,0.2]
[1763442956039,9.93098926,136.31,136.28,6.09959394]
[1763442956040,37.68503947,136.29,136.28,0.2]
[1763442956530,38.39503947,136.29,136.28,0.2]
[1763442956841,38.39503947,136.29,136.24,0.2]
[1763442956842,28.05194926,136.25,136.24,0.2]
[1763442957138,38.39503947,136.25,136.24,0.2]
[1763442957549,45.73448901,136.25,136.24,0.2]
[1763442958359,38.39503947,136.25,136.24,0.2]
[1763442960644,28.05194926,136.25,136.24,0.2]
[1763442960952,10.34309021,136.33,136.24,17.89297679]
[1763442961129,0.71,136.32,136.28,9.63309021]
[1763442961536,5.91616234,136.36,136.29,9.63309021]
[1763442961537,0.71,136.34,136.29,9.63309021]
[1763442961845,0.71,136.34,136.3,9.63309021]
[1763442962144,18.12096,136.31,136.3,9.63309021]
[1763442962523,9.78882769,136.33,136.3,9.63309021]
[1763442962746,18.12096,136.31,136.3,9.63309021]
[1763442962951,0.14216157,136.32,136.3,9.63309021]
[1763442963134,18.12096,136.31,136.3,9.63309021]
[1763442964852,18.12096,136.31,136.3,5.53698375]
[1763442966856,18.12096,136.31,136.29,0.72]
[1763442966857,18.12096,136.3,136.29,0.72]
[1763442967154,18.12096,136.3,136.29,6.25698375]
[1763442968125,0.71,136.34,136.29,6.25698375]
[1763442968359,7.33231258,136.39,136.33,5.53698375]
[1763442968360,9.78882769,136.37,136.33,5.53698375]
[1763442968664,15.32581144,136.39,136.31,5.89959394]
[1763442968834,9.93098926,136.35,136.28,5.89959394]
[1763442969153,9.93098926,136.35,136.31,5.53698375]
[1763442969346,10.49882769,136.37,136.33,5.53698375]
[1763442969526,10.49882769,136.37,136.34,5.53698375]
[1763442969724,18.12096,136.34,136.33,5.53698375]
[1763442969936,9.78882769,136.35,136.32,5.53698375]
[1763442970329,18.12096,136.35,136.33,5.53698375]
[1763442970544,18.12096,136.34,136.32,5.53698375]
[1763442970750,0.14216157,136.36,136.32,5.53698375]
[1763442970950,0.14216157,136.34,136.32,6.25698375]
[1763442971135,18.12096,136.35,136.33,6.25698375]
[1763442972628,18.12096,136.35,136.33,0.72]
[1763442972858,0.14216157,136.34,136.31,6.25698375]
[1763442973356,0.14216157,136.34,136.32,6.25698375]
[1763442974360,0.14216157,136.34,136.32,0.72]
[1763442975462,0.14216157,136.34,136.32,3.04500617]
[1763442976960,18.12096,136.35,136.33,3.04500617]
[1763442977182,0.66,136.42,136.34,2.32500617]
[1763442977339,9.78882769,136.41,136.37,2.32500617]
[1763442977746,9.78882769,136.42,136.37,2.32500617]
[1763442978047,18.12096,136.39,136.36,3.04500617]
[1763442978358,0.66,136.41,136.36,0.72]
[1763442978560,9.78882769,136.4,136.36,3.04500617]
[1763442978772,9.78882769,136.4,136.36,6.25210782]
[1763442979059,9.78882769,136.4,136.36,6.24210782]
[1763442979260,18.12096,136.37,136.32,13.23517883]
[1763442979461,18.12096,136.37,136.3,6.60959394]
[1763442979462,9.78882769,136.36,136.3,6.60959394]
[1763442979636,10.44882769,136.36,136.31,5.53210782]
[1763442979833,0.66,136.35,136.3,6.24210782]
[1763442980046,9.78882769,136.36,136.31,5.53210782]
[1763442980267,0.66,136.35,136.31,5.53210782]
[1763442980445,18.12096,136.33,136.31,5.53210782]
[1763442980847,18.78096,136.33,136.31,5.53210782]
[1763442981062,0.66,136.35,136.32,5.53210782]
[1763442981267,18.12096,136.33,136.32,6.24210782]
[1763442981441,18.12096,136.33,136.32,5.53210782]
[1763442982864,18.78096,136.33,136.31,5.53210782]
[1763442983746,18.78096,136.33,136.29,0.71]
[1763442983747,18.12096,136.33,136.32,6.24210782]
[1763442983963,18.12096,136.33,136.32,5.53210782]
[1763442984354,18.12096,136.33,136.3,0.71]
[1763442984676,18.12096,136.33,136.32,5.53210782]
[1763442984851,18.12096,136.35,136.32,5.53210782]
[1763442985665,18.12096,136.35,136.33,5.53210782]
[1763442985840,18.12096,136.35,136.33,6.24210782]
[1763442986047,18.12096,136.35,136.34,5.53210782]
[1763442986252,18.12096,136.35,136.33,6.24210782]
[1763442987253,18.12096,136.35,136.33,5.53210782]
[1763442987479,18.12096,136.35,136.32,5.53210782]
[1763442987683,18.78096,136.35,136.31,6.24210782]
[1763442987851,0.66,136.34,136.29,5.89959394]
[1763442988051,0.66,136.34,136.28,7.92252249]
[1763442988052,18.12096,136.29,136.28,5.89959394]
[1763442988364,18.12096,136.29,136.24,0.2]
[1763442988365,18.12096,136.26,136.24,0.2]
[1763442989873,18.78096,136.25,136.24,0.2]
[1763442990359,18.12096,136.26,136.24,6.44210782]
[1763442990870,18.12096,136.27,136.25,6.24210782]
[1763442991551,0.66,136.29,136.25,13.58142859]
[1763442991759,18.12096,136.28,136.25,13.58142859]
[1763442991952,18.12096,136.28,136.25,19.48102253]
[1763442992152,18.12096,136.28,136.26,6.24210782]
[1763442992380,0.66,136.32,136.26,6.24210782]
[1763442992591,0.66,136.31,136.26,6.24210782]
[1763442992989,0.66,136.31,136.27,6.24210782]
[1763442993283,18.12096,136.29,136.27,6.24210782]
[1763442993487,18.12096,136.29,136.27,5.53210782]
[1763442993785,0.66,136.33,136.28,12.14170176]
[1763442993970,0.66,136.33,136.29,5.53210782]
[1763442994284,18.12096,136.32,136.29,6.24210782]
[1763442994499,18.12096,136.31,136.29,6.24210782]
[1763442994659,0.66,136.36,136.3,6.24210782]
[1763442994858,0.66,136.36,136.31,5.53210782]
[1763442995101,0.66,136.36,136.29,6.60959394]
[1763442995102,24.31306782,136.36,136.29,6.60959394]
[1763442995255,24.31306782,136.36,136.3,5.53210782]
[1763442995466,24.31306782,136.36,136.29,6.60959394]
[1763442995467,15.98093551,136.35,136.29,19.47897752]
[1763442995778,10.44882769,136.35,136.3,5.53210782]
[1763442995979,18.12096,136.34,136.3,5.53210782]
[1763442996180,18.78096,136.34,136.3,6.24210782]
[1763442997186,18.12096,136.34,136.31,6.24210782]
[1763442997382,18.12096,136.34,136.32,5.53210782]
[1763442997579,18.12096,136.35,136.32,5.53210782]
[1763442997903,18.12096,136.35,136.32,6.24210782]
[1763442998195,18.12096,136.34,136.32,0.71]
[1763442998965,18.12096,136.35,136.32,6.24210782]
[1763442999484,6.19210782,136.39,136.33,6.24210782]
[1763442999823,6.19210782,136.39,136.34,5.53210782]
[1763442999824,10.44882769,136.39,136.34,5.53210782]
[1763442999974,18.12096,136.36,136.34,5.53210782]
[1763443000167,18.12096,136.36,136.34,0.71]
[1763443000367,18.12096,136.36,136.32,7.33551253]
[1763443000368,18.78096,136.36,136.32,5.89959394]
[1763443000570,46.91623761,136.45,136.33,6.24210782]
[1763443000571,0.66,136.4,136.33,6.24210782]
[1763443000804,18.12096,136.36,136.34,5.53210782]
[1763443001108,18.12096,136.36,136.34,6.24210782]
[1763443001302,18.12096,136.37,136.35,0.71]
[1763443001601,18.12096,136.36,136.34,5.53210782]
[1763443001776,0.66,136.39,136.34,13.57670738]
[1763443001978,18.12096,136.37,136.34,12.86670738]
[1763443002198,18.12096,136.37,136.34,13.56670738]
[1763443002387,18.12096,136.37,136.34,6.23210782]
[1763443002584,18.12096,136.37,136.35,0.7]
[1763443002806,18.12096,136.38,136.36,5.53210782]
[1763443003281,18.12096,136.38,136.36,6.23210782]
[1763443003913,18.79096,136.38,136.34,11.43170176]
[1763443004091,18.12096,136.38,136.34,11.43170176]
[1763443004292,18.12096,136.37,136.35,6.59959394]
[1763443005304,0.67,136.39,136.35,0.7]
[1763443006388,18.12096,136.4,136.36,5.53210782]
[1763443006587,18.79096,136.4,136.36,5.53210782]
[1763443006811,18.79096,136.4,136.36,6.23210782]
[1763443007316,18.12096,136.39,136.36,6.23210782]
[1763443007724,18.12096,136.38,136.36,6.23210782]
[1763443008509,18.12096,136.38,136.36,0.7]
[1763443009622,18.12096,136.38,136.36,6.59959394]
[1763443009805,0.67,136.4,136.36,6.59959394]
[1763443010542,0.67,136.4,136.36,12.13170176]
[1763443010815,0.67,136.4,136.36,6.59959394]
[1763443013520,2.32359505,136.39,136.35,5.89959394]
[1763443013709,18.12096,136.38,136.34,5.89959394]
[1763443013907,18.79096,136.38,136.34,5.89959394]
[1763443014109,0.67,136.38,136.34,13.93410219]
[1763443014307,21.11455505,136.4,136.35,6.59959394]
[1763443014611,18.79096,136.4,136.36,5.89959394]
[1763443014830,18.79096,136.4,136.37,0.7]
[1763443015208,18.12096,136.4,136.37,0.7]
[1763443016424,0.67,136.43,136.38,2.32359505]
[1763443016631,0.67,136.43,136.38,8.22318899]
[1763443016831,110.22780808,136.47,136.42,2.32359505]
[1763443016832,0.2,136.47,136.42,2.32359505]
[1763443017047,0.2,136.47,136.46,2.32359505]
[1763443017530,0.87,136.47,136.43,8.22318899]
[1763443017708,0.87,136.47,136.43,2.32359505]
[1763443017910,0.67,136.46,136.42,2.32359505]
[1763443018110,0.2,136.47,136.43,3.02359505]
[1763443018322,0.87,136.47,136.43,3.02359505]
[1763443018631,0.87,136.47,136.43,2.32359505]
[1763443018835,0.2,136.47,136.43,5.52615745]
[1763443019015,18.99096,136.47,136.42,6.22615745]
[1763443019435,0.67,136.46,136.42,6.22615745]
[1763443019735,18.12096,136.45,136.43,5.52615745]
[1763443019916,18.12096,136.45,136.43,6.22615745]
[1763443020456,0.2,136.47,136.44,6.22615745]
[1763443020607,0.2,136.47,136.45,5.52615745]
[1763443020810,0.2,136.47,136.45,6.22615745]
[1763443021029,18.32096,136.47,136.43,6.59959394]
[1763443021222,18.12096,136.46,136.41,6.59959394]
[1763443021434,0.2,136.47,136.45,5.52615745]
[1763443021636,0.2,136.47,136.46,5.52615745]
[1763443021825,0.2,136.47,136.46,6.22615745]
[1763443022011,0.2,136.47,136.46,5.52615745]
[1763443022234,0.2,136.47,136.46,6.22615745]
[1763443023749,0.2,136.48,136.46,29.24273385]
[1763443023920,0.1,136.51,136.47,12.08394187]
[1763443024118,0.1,136.51,136.5,5.52615745]
[1763443024348,0.1,136.51,136.48,0.7]
[1763443024543,0.1,136.51,136.5,5.52615745]
[1763443024719,0.77,136.51,136.45,13.88638292]
[1763443024917,0.77,136.51,136.47,9.61561012]
[1763443025119,0.77,136.51,136.46,0.7]
[1763443025314,0.77,136.51,136.48,9.61561012]
[1763443026229,0.1,136.51,136.49,10.31561012]
[1763443026428,0.1,136.51,136.45,9.78882769]
[1763443026429,0.1,136.51,136.5,9.61561012]
[1763443026937,0.1,136.51,136.49,9.61561012]
[1763443027120,0.1,136.51,136.48,9.61561012]
[1763443027447,0.77,136.51,136.48,9.61561012]
[1763443027621,18.89096,136.51,136.48,9.61561012]
[1763443027958,0.1,136.51,136.5,9.61561012]
[1763443029562,0.77,136.51,136.45,0.7]
[1763443029887,0.1,136.51,136.49,9.61561012]
[1763443030215,0.77,136.51,136.49,9.61561012]
[1763443030443,0.1,136.51,136.45,25.65032582]
[1763443030621,0.1,136.51,136.49,9.61561012]
[1763443030822,0.1,136.51,136.47,0.7]
[1763443031022,0.1,136.51,136.49,9.61561012]
[1763443031515,0.77,136.51,136.48,9.61561012]
[1763443032262,0.1,136.51,136.49,9.61561012]
[1763443032429,0.1,136.51,136.5,9.61561012]
[1763443032850,0.1,136.51,136.5,10.26561012]
[1763443033322,0.1,136.51,136.5,0.65]
[1763443033525,0.1,136.51,136.5,17.59161744]
[1763443033728,0.1,136.51,136.5,10.26561012]
[1763443034131,0.1,136.51,136.5,17.59161744]
[1763443035966,0.1,136.51,136.5,18.32421817]
[1763443036429,0.1,136.51,136.5,17.59161744]
[1763443036629,0.77,136.51,136.45,7.97827725]
[1763443036825,0.77,136.51,136.45,0.65]
[1763443037146,18.89096,136.51,136.46,9.61561012]
[1763443037528,0.67,136.5,136.42,5.85778442]
[1763443037752,28.40657012,136.5,136.44,9.61561012]
[1763443037958,28.40657012,136.5,136.45,9.61561012]
[1763443038234,0.67,136.49,136.45,9.61561012]